[Event "CCT Airthings Masters Play-In 2023"]
[Site "Online"]
[Date "2023.02.03"]
[Round "4"]
[White "Antipov_Mikhail_Al"]
[Black "Murzin, Volodar"]
[Result "1/2-1/2"]
[ECO "B13"]
[WhiteElo "2572"]
[BlackElo "2547"]
[Annotator "TA"]
[PlyCount "140"]
[EventDate "2023.02.03"]
[EventType "swiss"]
[EventCountry "NET"]
[SourceTitle "playchess.com"]
[Source "ChessBase"]
[SourceQuality "1"]
[TimeControl "600+2"]

{[%evp 10,139,23,33,37,9,16,18,14,22,26,2,27,19,17,23,43,43,39,36,60,14,11,6,72,71,78,32,56,50,49,37,56,69,95,98,100,41,27,0,0,0,0,0,0,0,0,0,0,0,0,-8,0,0,0,-25,-3,-3,0,0,0,0,0,-16,-9,-54,0,0,-3,-21,0,0,0,0,0,0,0,0,0,-160,-159,-177,-175,-327,-308,-263,-260,-187,-187,-187,-56,-74,-52,-461,-441,-525,-500,-815,-726,-1193,-1460,-1432,-1389,-12816,-12818,-12837,-8087,-12839,-12837,-12837,-12836,-12836,-12833,-12834,-12833,-12833,-12834,-12835,-12835,-12835,-12833,-12834,-12835,-12840,-12834,-12835,0,0,0,0,0,0]} 1. e4 {[%emt 0:00:03]} c6 {[%emt 0:01:16]} 2. d4 {[%emt 0:00:01]} d5 {[%emt 0:00:01]} 3. exd5 {[%emt 0:00:00]} cxd5 {[%emt 0:00:01]} 4. Bd3 {[%emt 0:00:05]} Nc6 {[%emt 0:00:01]} 5. c3 {[%emt 0:00:01]} g6 {[%emt 0:00:01]} 6. Nf3 {[%emt 0:00:02]} Bf5 {[%emt 0:00:01] B13: Caro-Kann: Exchange Variation and Panov-Botvinnik Attack.} 7. Be2 {[%emt 0:00:02]} Bg7 {[%emt 0:00:02]} 8. O-O {[%emt 0:00:01]} Nf6 {[%emt 0:00:00]} 9. Re1 {[%emt 0:00:01]} O-O {[%emt 0:00:00]} 10. h3 {[%emt 0:00:02]} Re8 {[%emt 0:00:02]} 11. Be3 {[%emt 0:00:01] [#]} Ne4 $146 {[%emt 0:00:01]} ({Predecessor:} 11... Qb8 12. Nbd2 b5 13. a4 b4 14. c4 e5 15. Rc1 exd4 16. Nxd4 Nxd4 17. Bxd4 Qf4 {0-1 Antipov,M (2607)-Kosteniuk,A (2518) Titled Tuesday intern op 23rd Nov blitz 2021 (10)}) 12. Nbd2 {[%emt 0:00:01]} Qc7 {[%emt 0:00:21]} 13. g4 {[%emt 0:00:02]} Nxd2 {[%emt 0:00:17]} 14. Qxd2 {[%emt 0:00:00]} Be4 {[%emt 0:00:00]} 15. Bf4 {[%emt 0:00:42]} (15. Ng5 $14 {was preferrable.}) 15... e5 $11 {[%emt 0:01:06]} 16. Bg3 {[%emt 0:00:02]} Bxf3 {[%emt 0:00:23]} (16... f5 $11 {remains equal.}) 17. Bxf3 $16 {[%emt 0:00:02]} Rad8 {[%emt 0:00:00]} 18. Bg2 {[%emt 0:00:09]} (18. Rad1 $16) 18... Qb6 $14 {[%emt 0:00:17][%cal Re5d4]} 19. dxe5 {[%emt 0:00:03]} Bxe5 {[%emt 0:00:02]} 20. Bxe5 {[%emt 0:00:23]} (20. Bh4 {feels hotter.} f6 21. Bxd5+ Kg7 22. c4) 20... Nxe5 {[%emt 0:00:00]} 21. Rad1 {[%emt 0:00:50]} Nc4 {[%emt 0:01:38][%csl LRb2,LRd2]} 22. Rxe8+ {[%emt 0:00:05]} Rxe8 {[%emt 0:00:01][%cal Bd8e8,Be8e2,Be2d2,Bd2d6][%mdl 32]} 23. Qxd5 {[%emt 0:00:00]} (23. Qf4 $16) 23... Nxb2 {[%emt 0:00:03]} 24. Rb1 {[%emt 0:01:08][%cal Og2f3]} (24. Qd7 $5 {[%cal Rd7e8]} Re2 25. Qd8+ Kg7 26. Qxb6 axb6 27. Rd7 $14) 24... Re2 {[%emt 0:00:05]} 25. Qf3 {[%emt 0:00:10]} (25. Qxb7 Qxf2+ 26. Kh1 Nd3 $17) 25... Rd2 {[%emt 0:00:03]} 26. g5 {[%emt 0:00:43][%cal Of3f4]} (26. Qxb7 $2 Qxf2+ 27. Kh1 Nd1 $17) 26... Qc5 {[%emt 0:00:20]} 27. Qf6 {[%emt 0:00:48]} (27. Qxb7 Nd3 28. Qb8+ (28. Qd5 $2 Qxf2+ 29. Kh1 h5 $19) 28... Kg7 $19) 27... Rd6 {[%emt 0:00:30]} 28. Qf4 {[%emt 0:00:02]} Nd3 {[%emt 0:01:36]} 29. Qg3 {[%emt 0:00:21]} b6 {[%emt 0:00:04]} 30. a4 {[%emt 0:00:03]} Qe5 {[%emt 0:00:23]} 31. Qxe5 {[%emt 0:00:42]} Nxe5 $11 {[%emt 0:00:02][%cal Bd3e5,Be5c4,Bc4e3][%mdl 4128] Endgame KRB-KRN} 32. Re1 {[%emt 0:00:01]} Re6 {[%emt 0:00:08][%cal Oe5f3] Hoping for ...Nf3+!} (32... Nd3 $5 {[%cal Rd3e1]} 33. Rd1 Rd7 $11) 33. Rd1 {[%emt 0:00:03]} Kf8 {[%emt 0:00:03]} 34. f4 {[%emt 0:01:51][%cal Og2d5] And now Bd5! would win.} Nc4 {[%emt 0:00:03]} 35. Rd8+ {[%emt 0:00:00]} Re8 {[%emt 0:00:02]} 36. Rd4 {[%emt 0:00:01]} Ne3 {[%emt 0:00:08]} 37. Be4 {[%emt 0:00:01]} Rc8 {[%emt 0:00:29]} (37... Nd1 $15) 38. Rd3 {[%emt 0:00:05]} Nf5 {[%emt 0:00:01]} 39. Bd5 {[%emt 0:00:35]} Rd8 {[%emt 0:00:30]} 40. Kf2 {[%emt 0:00:04]} Ne7 {[%emt 0:00:02]} 41. c4 {[%emt 0:00:01]} Nxd5 {[%emt 0:00:04]} 42. cxd5 {[%emt 0:00:01] KR-KR} Ke7 {[%emt 0:00:00]} 43. Ke3 {[%emt 0:00:27]} Rc8 {[%emt 0:00:07] aiming for ...Rc4.} 44. a5 $2 {[%emt 0:01:21]} b5 $1 $17 {[%emt 0:00:08]} (44... bxa5 45. d6+ Kd7 46. Rd5 $15) 45. d6+ {[%emt 0:00:14]} Kd7 {[%emt 0:00:03]} 46. a6 $2 {[%emt 0:00:07]} (46. h4 {was worth a try.}) 46... b4 $19 {[%emt 0:00:14]} 47. Rd4 {[%emt 0:00:04] [#]} Rb8 {[%emt 0:00:03]} (47... b3 48. Rb4 $11) 48. Kd2 {[%emt 0:00:02][%cal Of4f5]} Rb6 {[%emt 0:00:06][%csl LRa6,LRd6]} (48... b3 49. Kc1 $15) 49. Kc2 {[%emt 0:00:02] [#]} b3+ {[%emt 0:00:10]} ({Inferior is} 49... Rxa6 50. Rxb4 Kxd6 51. Rd4+ Kc6 52. f5 $17) (49... Rc6+ $1 $19 50. Kb3 Rxa6 51. Kxb4 Rxd6) 50. Kb2 $15 {[%emt 0:00:01][%cal Of4f5]} Rxd6 {[%emt 0:00:01]} 51. Rb4 {[%emt 0:00:03][%mdl 8192]} (51. Rxd6+ Kxd6 52. Kxb3 Kc5 $19) (51. Ra4 $1 $15) 51... Rxa6 $19 {[%emt 0:00:02]} 52. Rb7+ {[%emt 0:00:03]} Ke6 {[%emt 0:00:01]} 53. h4 {[%emt 0:00:00]} (53. Rb5 $142 Ra4 54. Re5+ Kd6 55. Kxb3 Rxf4 56. Re3) 53... Ra4 {[%emt 0:00:03]} 54. f5+ {[%emt 0:00:03]} gxf5 {[%emt 0:00:01]} ({Weaker is} 54... Kxf5 55. Rxf7+ Ke6 56. Rxh7 $11) 55. h5 {[%emt 0:00:00]} Rg4 {[%emt 0:00:07]} 56. Kxb3 {[%emt 0:00:04]} Rxg5 {[%emt 0:00:02]} 57. h6 {[%emt 0:00:00]} Rg6 {[%emt 0:00:11]} 58. Rxa7 {[%emt 0:00:02]} Kf6 {[%emt 0:00:00]} (58... Rxh6 59. Ra6+ Ke5 60. Rxh6 $18) 59. Kc4 {[%emt 0:00:02]} Rxh6 {[%emt 0:00:03]} 60. Kd3 {[%emt 0:00:00]} Rh4 {[%emt 0:00:12]} 61. Ke3 {[%emt 0:00:01]} Rg4 {[%emt 0:00:01]} 62. Kf3 {[%emt 0:00:01]} h5 {[%emt 0:00:00]} 63. Ra8 {[%emt 0:00:02]} Kg7 {[%emt 0:00:03]} 64. Ra5 {[%emt 0:00:02]} Kg6 {[%emt 0:00:05]} 65. Ra8 {[%emt 0:00:00]} h4 {[%emt 0:00:03]} 66. Rg8+ {[%emt 0:00:02]} Kf6 {[%emt 0:00:03]} 67. Ra8 {[%emt 0:00:02]} h3 $2 {[%emt 0:00:07]} (67... Kg7 $19 68. Ra5 Rg5) 68. Rh8 $11 {[%emt 0:00:01] The position is equal.} Ra4 {[%emt 0:00:00]} 69. Rxh3 {[%emt 0:00:01]} Ra3+ {[%emt 0:00:01]} 70. Kf4 {[%emt 0:00:00]} Rxh3 {[%emt 0:00:00] Weighted Error Value: White=0.54/Black=0.17 (very precise)} 1/2-1/2

[Event "CCT Airthings Masters Play-In 2023"]
[Site "Online"]
[Date "2023.02.03"]
[Round "4"]
[White "igorkovalenko"]
[Black "Radjabov, Teimour"]
[Result "1-0"]
[ECO "A29"]
[WhiteElo "2564"]
[BlackElo "2747"]
[Annotator "TA"]
[PlyCount "93"]
[EventDate "2023.02.03"]
[EventType "swiss"]
[EventCountry "NET"]
[SourceTitle "playchess.com"]
[Source "ChessBase"]
[SourceQuality "1"]
[TimeControl "600+2"]

{[%evp 10,93,1,4,20,6,14,0,0,-10,-8,-3,0,0,-14,-8,-10,-16,-24,-45,-46,-37,-35,-42,-38,-37,-40,-52,-57,-65,-26,-23,-10,-27,0,0,0,-83,-9,-13,0,0,6,-92,-56,-102,-69,-62,-68,-251,-74,-95,33,37,88,77,126,76,72,67,62,68,69,79,90,118,136,67,67,67,107,116,166,166,167,98,109,70,240,233,225,43,377,363,346,341]} 1. c4 {[%emt 0:00:04]} Nf6 {[%emt 0:00:05]} 2. Nc3 {[%emt 0:00:01]} e5 {[%emt 0:00:01]} 3. Nf3 {[%emt 0:00:01]} Nc6 {[%emt 0:00:01]} 4. g3 {[%emt 0:00:01]} d5 {[%emt 0:00:01]} 5. cxd5 {[%emt 0:00:00]} Nxd5 {[%emt 0:00:01]} 6. Bg2 {[%emt 0:00:00][%cal Of3e5]} Bc5 {[%emt 0:00:01] A29: English Opening: Four Knights Variation with 4 g3.} 7. O-O {[%emt 0:00:01][%cal Of3e5]} O-O {[%emt 0:00:02]} 8. d3 {[%emt 0:00:01]} Re8 {[%emt 0:00:22] The position is equal.} 9. Bg5 {[%emt 0:00:12] 9.Ng5 is not played anymore.} Nxc3 {[%emt 0:00:28]} 10. bxc3 {[%emt 0:00:00]} Qd6 {[%emt 0:00:03] [#]} 11. Nd2 $146 {[%emt 0:00:06]} ({Predecessor:} 11. Rb1 h6 12. Bc1 Be6 13. Nd2 Bb6 14. Qa4 Rad8 15. Ne4 Qe7 16. Ba3 Qd7 17. Rfd1 {½-½ Belchev,B (2210)-Baranowski,T (2379) VW-Cup9 sf06 email 2018}) 11... Qg6 {[%emt 0:00:06]} 12. Ne4 {[%emt 0:00:18]} Bb6 {[%emt 0:00:03]} 13. Bc1 {[%emt 0:00:40]} Bg4 {[%emt 0:00:46]} 14. Kh1 {[%emt 0:00:35]} Rad8 {[%emt 0:00:07]} 15. f3 {[%emt 0:00:10]} Bc8 {[%emt 0:00:21]} 16. Qb3 {[%emt 0:00:48]} Be6 {[%emt 0:00:59]} 17. Qc2 {[%emt 0:00:01]} h6 {[%emt 0:00:21]} 18. a4 {[%emt 0:00:06]} f5 {[%emt 0:01:09]} 19. Nf2 {[%emt 0:00:01]} a5 {[%emt 0:00:09]} 20. Rb1 {[%emt 0:00:08]} Ne7 {[%emt 0:00:22]} 21. e4 {[%emt 0:01:04]} Nc6 {[%emt 0:00:12]} 22. Ba3 {[%emt 0:00:31]} Rd7 {[%emt 0:00:32]} 23. Rbd1 {[%emt 0:00:07]} (23. exf5 $11 {keeps the balance.} Bxf5 24. Ne4) 23... Red8 {[%emt 0:00:04]} (23... Qf7 $1 $17 {aiming for ...Bb3.} 24. Rb1 Red8 25. Rxb6 cxb6) 24. exf5 $11 {[%emt 0:00:09]} Qxf5 {[%emt 0:00:17]} (24... Bxf5 {feels hotter.} 25. Ne4 Ne7 26. Bxe7 Rxe7 27. f4 exf4 28. Rxf4 Rf8) 25. Ne4 {[%emt 0:00:01]} Qf7 {[%emt 0:00:03]} 26. c4 {[%emt 0:00:17]} (26. Qe2 $1 $11 {remains equal.}) 26... Nd4 {[%emt 0:00:24]} 27. Qb2 {[%emt 0:00:12]} (27. Qb1 $15 {feels stronger.}) 27... Nf5 $1 $17 {[%emt 0:00:49][%cal Oe6c4]} 28. c5 {[%emt 0:00:02]} (28. Qxe5 $2 Bxc4 29. Bh3 Rxd3 30. Rxd3 Rxd3 31. Qxf5 Qxf5 32. Bxf5 Rxa3 $19) 28... Ba7 {[%emt 0:00:03] ...Ne3 would be deadly.} 29. Qxb7 $2 {[%emt 0:00:01]} (29. Qxe5 $15 Bb3 30. Rd2) 29... Bd5 $2 {[%emt 0:00:05]} (29... Ne3 $1 $19 {[%cal Re3d1]} 30. Qxa7 Nxd1) 30. Qa6 {[%emt 0:00:21]} (30. Qxa7 Ra8 31. c6 Rxa7 $17) 30... c6 {[%emt 0:00:24]} (30... Ra8 $1 $17 {Hoping for ...Bxe4.} 31. Qb5 (31. Qxa5 Ne3 $17) 31... Ne3) 31. Rde1 $36 {[%emt 0:00:16][%mdl 2048] Black is under pressure.} (31. Qxa5 Ne3 32. Nd6 Qf6 $15) 31... Qg6 {[%emt 0:01:31]} (31... Nd4 $14) 32. Qxa5 {[%emt 0:00:10]} Rb8 {[%emt 0:00:03]} (32... Bb8 $142) 33. Qc3 {[%emt 0:00:17]} (33. Rb1 $142) 33... Rb3 $16 {[%emt 0:00:08]} 34. Qc1 {[%emt 0:00:01]} (34. Qxe5 $2 Rxa3 35. Bh3 Rf7 $19) 34... Rxd3 {[%emt 0:00:03]} 35. Bb2 $1 {[%emt 0:00:14]} Nd4 {[%emt 0:00:18]} 36. a5 {[%emt 0:00:27][%cal Ba4a5,Ba5a6][%mdl 32]} Nb3 {[%emt 0:00:08]} 37. Qb1 {[%emt 0:00:06]} Nxc5 {[%emt 0:00:13] [#]} 38. Nxc5 {[%emt 0:00:04]} ({Don't take} 38. Bxe5 Rb3 39. Qc2 Nd3 $14) (38. Nf2 $1 $16) 38... Bxc5 $14 {[%emt 0:00:03]} 39. Bxe5 {[%emt 0:00:02]} Rf7 {[%emt 0:00:22]} 40. a6 {[%emt 0:00:18]} Rdxf3 {[%emt 0:00:09]} (40... Kh7 $16) 41. Rxf3 $18 {[%emt 0:00:02]} (41. Qxg6 $2 {leads to mate.} Rxf1+ 42. Rxf1 Rxf1#) 41... Qxb1 {[%emt 0:00:02]} 42. Rxb1 {[%emt 0:00:00]} Rxf3 {[%emt 0:00:01]} 43. h4 {[%emt 0:00:27]} Ra3 {[%emt 0:00:02]} ({Black should try} 43... Re3 $1 $14 44. Bxd5+ cxd5) 44. Bxd5+ {[%emt 0:00:01]} cxd5 {[%emt 0:00:01] [#]} 45. Rb7 $2 {[%emt 0:00:02]} (45. Ra1 $1 $18 {[%cal Ra1a3] Threatens to win with Rxa3.} Rxa1+ 46. Bxa1) 45... g5 $2 {[%emt 0:00:02][%mdl 8192]} (45... Rxa6 $14 46. Rxg7+ Kf8) 46. Rg7+ {[%emt 0:00:08]} Kf8 {[%emt 0:00:01]} 47. Rc7 {[%emt 0:00:00] Weighted Error Value: White=0.22 (precise) /Black=0.40} ({And not} 47. hxg5 Rxa6 48. Rc7 Be3 $11) 1-0

[Event "CCT Airthings Masters Play-In 2023"]
[Site "Online"]
[Date "2023.02.03"]
[Round "4"]
[White "Indianlad"]
[Black "GMSrinath"]
[Result "0-1"]
[ECO "B11"]
[WhiteElo "2562"]
[BlackElo "2733"]
[Annotator "TA"]
[PlyCount "64"]
[EventDate "2023.02.03"]
[EventType "swiss"]
[EventCountry "NET"]
[SourceTitle "playchess.com"]
[Source "ChessBase"]
[SourceQuality "1"]
[TimeControl "600+2"]

{[%evp 9,64,29,25,36,61,74,78,62,56,48,64,53,67,36,47,33,69,79,83,64,89,88,83,46,41,57,65,-58,-64,-43,-17,-18,-24,-24,-25,-23,-25,-25,-34,-71,-62,-53,-45,-230,-225,-813,-818,-853,-787,-1634,-443,-29967,-29967,-29963,-29964,-29994,-29995]} 1. e4 {[%emt 0:00:03]} c6 {[%emt 0:00:26]} 2. Nc3 {[%emt 0:00:06]} d5 {[%emt 0:00:04]} 3. Qe2 {[%emt 0:00:01]} g6 {[%emt 0:01:43]} 4. exd5 {[%emt 0:00:03]} cxd5 {[%emt 0:00:01]} 5. Qb5+ {[%emt 0:00:01]} Nc6 {[%emt 0:00:00]} 6. Qxd5 {[%emt 0:00:02] [#] B11: Caro-Kann: Two Knights Variation.} Bf5 $146 {[%emt 0:00:02]} ({Predecessor:} 6... Bd7 7. Bc4 e6 8. Qf3 Ne5 9. Qe2 Nxc4 10. Qxc4 Bc6 11. Nf3 Bg7 12. Qe2 Ne7 {½-½ Pridorozhni,A (2512)-Kamsky,G (2741) Wch Blitz 7th 2013 (9)}) 7. Bb5 {[%emt 0:00:19]} Qb6 {[%emt 0:00:54]} 8. d3 {[%emt 0:00:50] White is better.} ({Much weaker is} 8. Bc4 $6 e6 9. Qb5 Qxb5 10. Nxb5 Nb4 $11) 8... Nf6 {[%emt 0:00:25]} 9. Qf3 {[%emt 0:00:02]} Bg7 {[%emt 0:00:09]} 10. Nge2 {[%emt 0:00:02]} O-O {[%emt 0:00:03]} 11. Bxc6 {[%emt 0:00:09]} bxc6 {[%emt 0:00:01]} 12. O-O {[%emt 0:00:02]} Rfd8 {[%emt 0:00:38]} 13. Rb1 {[%emt 0:01:11]} Nd5 {[%emt 0:00:07] [#] And now ...Nxc3 would win.} 14. Be3 {[%emt 0:00:55]} Qa5 {[%emt 0:00:37]} 15. Bd2 {[%emt 0:00:09]} Nb4 {[%emt 0:00:25]} 16. Ne4 {[%emt 0:01:03] Threatens to win with a3.} Qb6 {[%emt 0:00:18]} 17. Bxb4 {[%emt 0:00:16]} Qxb4 {[%emt 0:00:00]} 18. b3 {[%emt 0:00:16]} (18. N4c3 $1 $14) 18... Bxe4 $1 $15 {[%emt 0:00:29]} 19. dxe4 {[%emt 0:00:08]} Rd2 {[%emt 0:00:01]} 20. Rbc1 {[%emt 0:00:31]} Qa3 {[%emt 0:00:14]} 21. e5 {[%emt 0:01:05]} Bxe5 {[%emt 0:00:27]} 22. Qxc6 {[%emt 0:00:07] White is weak on the dark squares} Rad8 {[%emt 0:00:02]} 23. Qe4 {[%emt 0:00:02]} Bf6 {[%emt 0:00:31]} 24. Nf4 {[%emt 0:00:23]} R8d4 {[%emt 0:00:27]} (24... R2d4 $5 {[%cal Rd4e4]} 25. Qe3 Bg5 $15) 25. Qf3 {[%emt 0:00:38]} Qxa2 {[%emt 0:00:35]} 26. Ra1 $2 {[%emt 0:00:01] This move loses the game for White.} (26. c3 $15 Rd7 27. c4) 26... Qxc2 $19 {[%emt 0:00:17][%cal Od4f4] Hoping for ...Rxf4!} 27. Rxa7 $2 {[%emt 0:00:01] [#]} (27. g3) 27... Rd1 $1 {[%emt 0:00:08]} 28. Ra8+ {[%emt 0:00:04]} Kg7 {[%emt 0:00:02] ( -> ...Rxf1+)} 29. g3 {[%emt 0:00:04]} e5 {[%emt 0:00:41]} (29... Qb1 $142 30. Rxd1 Rxd1+ 31. Kg2 Rg1+ 32. Kh3 Qf1+ 33. Ng2 Rh1) 30. Nh3 {[%emt 0:01:55]} (30. Ne6+ $19 fxe6 31. Ra7+ Rd7 32. Qxd1 Qxd1 33. Rxd1 Rxa7 34. Re1) 30... e4 {[%emt 0:00:20] Black mates.} 31. Qe3 {[%emt 0:00:11]} R4d3 {[%emt 0:00:20] Active counter play!} 32. Qf4 {[%emt 0:00:14]} Qe2 {[%emt 0:00:03] Weighted Error Value: White=0.81/Black=0.28 (precise)} 0-1

[Event "CCT Airthings Masters Play-In 2023"]
[Site "Online"]
[Date "2023.02.03"]
[Round "4"]
[White "daro94"]
[Black "Iniyan, P."]
[Result "0-1"]
[ECO "B52"]
[WhiteElo "2562"]
[BlackElo "2514"]
[Annotator "NA"]
[PlyCount "78"]
[EventDate "2023.02.03"]
[EventType "swiss"]
[EventCountry "NET"]
[SourceTitle "playchess.com"]
[Source "ChessBase"]
[SourceQuality "1"]
[TimeControl "600+2"]

1. e4 {[%emt 0:00:03]} c5 {[%emt 0:00:07]} 2. Nf3 {[%emt 0:00:03]} d6 {[%emt 0:00:01]} 3. Bb5+ {[%emt 0:00:03]} Bd7 {[%emt 0:00:02]} 4. Bxd7+ {[%emt 0:00:02]} Qxd7 {[%emt 0:00:00]} 5. O-O {[%emt 0:00:02]} Nf6 {[%emt 0:00:04]} 6. Qe2 {[%emt 0:00:01]} Nc6 {[%emt 0:00:04]} 7. c3 {[%emt 0:00:05]} e6 {[%emt 0:00:04]} 8. d4 {[%emt 0:00:02]} cxd4 {[%emt 0:00:04]} 9. cxd4 {[%emt 0:00:00]} d5 {[%emt 0:00:01]} 10. e5 {[%emt 0:00:02]} Ne4 {[%emt 0:00:02]} 11. Nbd2 {[%emt 0:00:11]} Nxd2 {[%emt 0:00:10]} 12. Bxd2 {[%emt 0:00:00]} Be7 {[%emt 0:00:00]} 13. Rfc1 {[%emt 0:00:28]} O-O {[%emt 0:00:06]} 14. Rc3 {[%emt 0:00:08]} Rfc8 {[%emt 0:00:15]} 15. h4 {[%emt 0:00:31]} Bd8 {[%emt 0:00:33]} 16. h5 {[%emt 0:00:12]} Ne7 {[%emt 0:00:17]} 17. h6 {[%emt 0:00:52]} g6 {[%emt 0:00:05]} 18. Rb3 {[%emt 0:00:11]} Rc4 {[%emt 0:00:10]} 19. Rd3 {[%emt 0:00:52]} Rc2 {[%emt 0:00:59]} 20. Qd1 {[%emt 0:01:12]} Rxb2 {[%emt 0:00:09]} 21. Bc1 {[%emt 0:00:01]} Rb6 {[%emt 0:01:01]} 22. Bg5 {[%emt 0:00:01]} Rc8 {[%emt 0:00:42]} 23. Qd2 {[%emt 0:00:25]} Qa4 {[%emt 0:00:57]} 24. Rc1 {[%emt 0:02:08]} Rxc1+ {[%emt 0:02:09]} 25. Qxc1 {[%emt 0:00:00]} Qxa2 {[%emt 0:00:14]} 26. Qf4 {[%emt 0:01:27]} Nf5 {[%emt 0:00:05]} 27. Bxd8 {[%emt 0:00:36]} Qb1+ {[%emt 0:00:02]} 28. Kh2 {[%emt 0:00:01]} Qxd3 {[%emt 0:00:01]} 29. Bxb6 {[%emt 0:00:01]} axb6 {[%emt 0:00:01]} 30. Qg5 {[%emt 0:00:04]} Qa3 {[%emt 0:00:01]} 31. g4 {[%emt 0:00:39]} Nxh6 {[%emt 0:00:03]} 32. Kg3 {[%emt 0:00:14]} Qf8 {[%emt 0:00:03]} 33. Qf6 {[%emt 0:00:06]} b5 {[%emt 0:00:17]} 34. Nd2 {[%emt 0:00:05]} b4 {[%emt 0:00:02]} 35. f3 {[%emt 0:00:20]} Qc8 {[%emt 0:00:19]} 36. Nb3 {[%emt 0:00:03]} Kf8 {[%emt 0:00:03]} 37. Qh8+ {[%emt 0:00:03]} Ng8 {[%emt 0:00:01]} 38. Qxh7 {[%emt 0:00:01]} b6 {[%emt 0:00:07]} 39. Qh1 {[%emt 0:00:02]} Qc2 {[%emt 0:00:06]} 0-1